[Event "Romanian Team Blitz Open 2022"]
[Site "Sebes"]
[Date "2022.12.04"]
[Round "3.4"]
[White "Gavrilescu, David"]
[Black "Bulau, Andrei-Cristian"]
[Result "1-0"]
[ECO "C02"]
[WhiteElo "2523"]
[BlackElo "2154"]
[Annotator "TA"]
[PlyCount "89"]
[EventDate "2022.12.04"]
[EventType "blitz"]
[EventCountry "ROU"]
[SourceTitle "playchess.com"]
[Source "ChessBase"]
[SourceQuality "1"]
[TimeControl "180+2"]

{[%evp 11,89,0,57,52,58,59,82,75,81,78,102,89,133,127,127,91,150,108,176,162,186,166,168,156,260,245,253,256,217,139,145,129,129,129,211,174,173,129,129,121,121,121,121,121,121,121,129,129,136,128,136,129,247,101,129,18,26,18,79,79,112,115,115,117,376,154,147,147,147,151,317,151,151,112,155,129,135,134,1297,1239]} 1. e4 {[%emt 0:00:01]} e6 {[%emt 0:00:00]} 2. d4 {[%emt 0:00:01]} d5 {[%emt 0:00:01]} 3. e5 {[%emt 0:00:01]} c5 {[%emt 0:00:01]} 4. c3 {[%emt 0:00:01]} Nc6 {[%emt 0:00:01]} 5. Nf3 {[%emt 0:00:01]} Qb6 {[%emt 0:00:06]} 6. Bd3 {[%emt 0:00:02]} Nge7 {[%emt 0:00:07]} (6... cxd4 $11 7. cxd4 Bd7) 7. dxc5 $14 {[%emt 0:00:02] C02: French: Advance Variation.} Qxc5 {[%emt 0:00:01]} 8. O-O {[%emt 0:00:02] [#]} Nf5 $146 {[%emt 0:00:11]} ({Predecessor:} 8... Ng6 9. Qe2 Qb6 10. Be3 Qc7 11. Bd4 Nf4 12. Qc2 Nxd3 13. Qxd3 Be7 14. Nbd2 Bd7 {0-1 (30) Gheorghiu,C (2286)-Gharibyan,M (2487) Chess.com INT 2022}) 9. b4 {[%emt 0:00:08][%cal Bb2b4,Bb4b5][%mdl 32] White is better.} Qb6 {[%emt 0:00:06]} 10. a4 {[%emt 0:00:10]} Qd8 {[%emt 0:00:27]} 11. Nbd2 {[%emt 0:00:08]} h5 {[%emt 0:00:02]} 12. Nb3 {[%emt 0:00:03]} Be7 {[%emt 0:00:08]} 13. b5 {[%emt 0:00:06]} Nb8 {[%emt 0:00:17]} (13... Na5 $142) 14. Nbd4 {[%emt 0:00:17]} Nxd4 {[%emt 0:00:03]} (14... g6 $16 {was worth a try.}) 15. cxd4 $18 {[%emt 0:00:04]} ({Much less strong is} 15. Nxd4 $6 Qc7 $14) 15... Nd7 {[%emt 0:00:06]} 16. Ba3 {[%emt 0:00:06]} Bxa3 {[%emt 0:00:06]} 17. Rxa3 {[%emt 0:00:02]} Nf8 {[%emt 0:00:06]} (17... Nb6 $16 18. Nd2 Bd7) 18. h4 {[%emt 0:00:03]} Bd7 {[%emt 0:00:09]} 19. Ng5 {[%emt 0:00:03]} g6 {[%emt 0:00:11]} 20. Rc3 {[%emt 0:00:12] [#] Black must now prevent Qf3.} Nh7 {[%emt 0:00:07]} 21. Nf3 {[%emt 0:00:04]} O-O {[%emt 0:00:04]} 22. Qd2 {[%emt 0:00:05]} Rc8 {[%emt 0:00:12]} (22... Qe7 $16 {keeps fighting.} 23. Ra1 (23. Rc7 b6 $16) 23... Rfc8) 23. Rfc1 {[%emt 0:00:03]} Rxc3 {[%emt 0:00:11]} 24. Qxc3 {[%emt 0:00:01]} Qa8 {[%emt 0:00:23]} 25. Qb4 {[%emt 0:00:28] And now Rc7 would win.} Rc8 {[%emt 0:00:03] Inhibits Rc7.} 26. Rxc8+ {[%emt 0:00:06]} Qxc8 {[%emt 0:00:01]} 27. g3 {[%emt 0:00:08]} Nf8 {[%emt 0:00:11]} 28. Qe7 {[%emt 0:00:07]} Be8 {[%emt 0:00:08]} 29. Kg2 {[%emt 0:00:04][%cal Og3g4] White is much more active.} Qd7 {[%emt 0:00:02] Inhibits g4.} 30. Qc5 {[%emt 0:00:02]} b6 {[%emt 0:00:01] Inhibits a5.} 31. Qc1 {[%emt 0:00:03][%cal Og3g4]} Qb7 {[%emt 0:00:07] [#] Prevents g4.} (31... Qd8 $16 32. Qc3 Bd7) 32. Qf4 {[%emt 0:00:03]} (32. g4 $1 $18) 32... Qc7 {[%emt 0:00:02]} 33. g4 {[%emt 0:00:02]} (33. Qd2 $16) 33... hxg4 $1 $11 {[%emt 0:00:03]} 34. Qxg4 {[%emt 0:00:01]} Qc1 {[%emt 0:00:08]} (34... Qc3 $11 35. Bf1 Qc2) 35. h5 $16 {[%emt 0:00:04]} Qh6 {[%emt 0:00:01]} 36. hxg6 {[%emt 0:00:08]} fxg6 {[%emt 0:00:04]} 37. Ng5 $36 {[%emt 0:00:03][%mdl 2048] Keeping Black busy.} (37. Qg5 {simplifies} Qxg5+ 38. Nxg5 Bf7 39. f4) 37... Bf7 {[%emt 0:00:06][%mdl 8192]} (37... Qh5 $16 {is a better defense.} 38. Be2 Qxg4+ 39. Bxg4 Bd7) 38. Qf4 {[%emt 0:00:02]} (38. Be2 $18 {is more deadly.}) 38... Qg7 {[%emt 0:00:01]} 39. Nh3 {[%emt 0:00:14]} Nh7 {[%emt 0:00:02]} 40. Qh4 {[%emt 0:00:01] aiming for Qe7.} Nf8 $2 {[%emt 0:00:07]} (40... Be8 $16 {might work better.} 41. Nf4 Nf8) 41. Qg5 {[%emt 0:00:03]} (41. Qd8 $18) 41... Be8 {[%emt 0:00:04]} 42. f3 {[%emt 0:00:04]} Qf7 {[%emt 0:00:03]} 43. Nf2 {[%emt 0:00:03] Ng4 is the strong threat.} Nh7 {[%emt 0:00:02]} 44. Qd8 {[%emt 0:00:01]} g5 $2 {[%emt 0:00:03][%mdl 8192]} (44... Kg7 $16 45. Ng4 Qf8 46. Qc7+ Bf7) 45. Ng4 {[%emt 0:00:02] Weighted Error Value: White=0.30/Black=0.35} 1-0

[Event "Romanian Team Blitz Open 2022"]
[Site "Sebes"]
[Date "2022.12.04"]
[Round "3.5"]
[White "Miron, Lucian-Costin"]
[Black "Szabo, Gergely-Andras-Gyula"]
[Result "1-0"]
[ECO "B07"]
[WhiteElo "2510"]
[BlackElo "2514"]
[Annotator "TA"]
[PlyCount "62"]
[EventDate "2022.12.04"]
[EventType "blitz"]
[EventCountry "ROU"]
[SourceTitle "playchess.com"]
[Source "ChessBase"]
[SourceQuality "1"]
[TimeControl "180+2"]

{[%evp 16,62,13,22,13,25,41,45,43,48,47,39,88,86,92,95,107,73,137,118,202,193,166,112,123,94,139,90,160,156,153,137,193,186,665,643,599,284,883,880,875,856,1520,2139,2337,2039,1667,1706,29992]} 1. Nf3 {[%emt 0:00:01]} Nf6 {[%emt 0:00:02]} 2. g3 {[%emt 0:00:01]} g6 {[%emt 0:00:04]} 3. Bg2 {[%emt 0:00:01]} Bg7 {[%emt 0:00:01]} 4. O-O {[%emt 0:00:02]} O-O {[%emt 0:00:02]} 5. d4 {[%emt 0:00:01]} d6 {[%emt 0:00:04]} 6. Re1 {[%emt 0:00:01]} Nbd7 {[%emt 0:00:35]} 7. e4 {[%emt 0:00:01]} e5 {[%emt 0:00:06]} 8. Nc3 {[%emt 0:00:01]} c6 {[%emt 0:00:09]} 9. a4 {[%emt 0:00:01]} Qa5 {[%emt 0:00:13] B07: Pirc Defence: Miscellaneous Systems.} 10. h3 {[%emt 0:00:04]} Re8 {[%emt 0:00:02]} 11. Be3 {[%emt 0:00:02]} Nf8 {[%emt 0:00:05] [#] White is slightly better.} 12. Qd2 $146 {[%emt 0:00:17]} ({Predecessor:} 12. Nd2 Be6 13. d5 cxd5 14. exd5 Bd7 15. Nc4 Qc7 16. b3 b6 17. Qc1 Red8 18. Bg5 {0-1 (45) Ushenina,A (2311)-Dolzhikova,K (2110) Nikolaev 2003}) 12... Qc7 {[%emt 0:00:14]} 13. a5 {[%emt 0:00:02]} exd4 {[%emt 0:00:08]} (13... Rd8 $14 {should be considered.}) 14. Nxd4 $16 {[%emt 0:00:02]} Ne6 {[%emt 0:00:01]} 15. Nb3 {[%emt 0:00:04]} Bd7 {[%emt 0:00:24]} 16. Rad1 {[%emt 0:00:01]} Bf8 {[%emt 0:00:01]} (16... d5 $142) 17. f4 {[%emt 0:00:12]} b5 {[%emt 0:00:07]} (17... Bc8 $16) 18. axb6 {[%emt 0:00:47]} axb6 {[%emt 0:00:01]} 19. Qf2 {[%emt 0:00:00]} ({Better is} 19. Rf1 $18) 19... b5 {[%emt 0:00:11]} 20. Bb6 {[%emt 0:00:01]} Qb7 {[%emt 0:00:14]} 21. e5 {[%emt 0:00:02] Inhibits b4.} (21. f5 $142) 21... Nh5 {[%emt 0:00:07]} ({Black should play} 21... b4) 22. exd6 {[%emt 0:00:10] White is more active.} Nxg3 {[%emt 0:00:02]} 23. Na5 {[%emt 0:00:33]} Qa6 {[%emt 0:00:05] [#]} (23... Rxa5 $16 {was worth a try.} 24. Bxa5 Nh5) 24. Nxc6 $1 $18 {[%emt 0:00:04]} ({Stronger than} 24. Bxc6 Bxc6 25. Nxc6 {[#]} Nxf4 $1 $15) 24... Nxf4 $2 {[%emt 0:00:04]} (24... Bxc6 25. Bxc6 Nxf4 26. Rxe8 (26. Bxe8 $2 Nxh3+ 27. Kh2 Nxf2 $19) 26... Nxh3+ 27. Kg2 Nxf2 28. Bxa8 Qxb6) 25. Ne7+ {[%emt 0:00:18]} Bxe7 {[%emt 0:00:01]} 26. dxe7 {[%emt 0:00:03]} (26. Rxe7 $142 Rxe7 27. dxe7) 26... Nxg2 $2 {[%emt 0:00:04]} (26... Bc6 27. Qxf4 (27. Bxc6 $2 {is the wrong capture.} Nxh3+ 28. Kg2 Nxf2 $19) 27... Qxb6+ 28. Qf2 Qxf2+ 29. Kxf2 Bxg2) 27. Kxg2 {[%emt 0:00:19] White is clearly winning.} Bc6+ {[%emt 0:00:14]} 28. Kxg3 {[%emt 0:00:02] Strongly threatening Rd6.} b4 {[%emt 0:00:00]} 29. Nd5 {[%emt 0:00:06]} Bxd5 {[%emt 0:00:03]} 30. Rxd5 {[%emt 0:00:01] White threatens Qf6 and mate.} Qb7 {[%emt 0:00:05]} 31. Rd8 {[%emt 0:00:03]} Qxb6 {[%emt 0:00:09] Weighted Error Value: White=0.48/Black=0.59} 1-0

[Event "Romanian Team Blitz Open 2022"]
[Site "Sebes"]
[Date "2022.12.04"]
[Round "3.6"]
[White "Nevednichy, Vladislav"]
[Black "Secheres, Adrian-Simion"]
[Result "1/2-1/2"]
[ECO "B07"]
[WhiteElo "2499"]
[BlackElo "2365"]
[Annotator "TA"]
[PlyCount "101"]
[EventDate "2022.12.04"]
[EventType "blitz"]
[EventCountry "ROU"]
[SourceTitle "playchess.com"]
[Source "ChessBase"]
[SourceQuality "1"]
[TimeControl "180+2"]

{[%evp 14,101,21,3,35,38,41,10,58,0,31,46,54,58,68,66,50,25,48,20,54,0,62,79,68,56,78,56,69,-27,36,43,35,0,0,0,0,7,137,-43,-43,-38,-33,-43,75,76,235,0,0,0,48,14,14,14,14,14,14,14,14,14,14,14,14,17,55,17,17,5,55,55,55,0,0,0,0,0,0,0,0,0,0,0,0,0,0,0,0,0,0,0]} 1. e4 {[%emt 0:00:02] Atalik,Suat} Nc6 {[%emt 0:00:01]} 2. Nf3 {[%emt 0:00:02]} d6 {[%emt 0:00:01]} 3. d4 {[%emt 0:00:01]} Nf6 {[%emt 0:00:02]} 4. Nbd2 {[%emt 0:00:16]} g6 {[%emt 0:00:02]} 5. c3 {[%emt 0:00:02]} Bg7 {[%emt 0:00:02]} 6. Bd3 {[%emt 0:00:02]} O-O {[%emt 0:00:02]} 7. O-O {[%emt 0:00:01]} e5 {[%emt 0:00:02]} 8. Re1 {[%emt 0:00:08]} Re8 {[%emt 0:00:07] B07: Pirc Defence: Miscellaneous Systems.} 9. d5 {[%emt 0:00:03]} Nb8 {[%emt 0:00:13]} 10. a4 {[%emt 0:00:02] [#]} a5 $146 {[%emt 0:00:08]} (10... c6 $11) ({Predecessor:} 10... c6 11. dxc6 Nxc6 12. Nc4 d5 13. exd5 Qxd5 14. Ne3 Qd8 15. Ng5 e4 16. Bc4 Ne5 {0-1 (43) Sari,Y (2161)-Atalik,S (2525) Veliko Gradiste 2017 CBM 180 [Atalik,Suat]}) 11. b4 {[%emt 0:00:01]} ({White should try} 11. Nc4 $14) 11... Nh5 {[%emt 0:00:07]} 12. Nb3 {[%emt 0:00:07]} axb4 {[%emt 0:00:16]} 13. cxb4 {[%emt 0:00:02]} Nf4 {[%emt 0:00:01]} 14. Bf1 {[%emt 0:00:09]} c6 {[%emt 0:00:03]} 15. a5 {[%emt 0:00:19]} cxd5 {[%emt 0:00:08]} 16. exd5 {[%emt 0:00:01]} Bf5 {[%emt 0:00:24][%cal Bc8f5,Bf5e4,Be4d5][%mdl 32]} 17. Nfd4 {[%emt 0:00:20]} Nh3+ {[%emt 0:00:20]} 18. gxh3 $14 {[%emt 0:00:01]} exd4 {[%emt 0:00:01]} 19. Rxe8+ Qxe8 {[%emt 0:00:01]} 20. Nxd4 {[%emt 0:00:16]} Be4 {[%emt 0:00:16][%cal Ob8a6]} 21. Nb5 {[%emt 0:00:54]} Qe5 {[%emt 0:00:13]} ({Better is} 21... Bxa1 $11 22. Nc7 Qd8 23. Nxa8 Nd7) 22. Ra3 {[%emt 0:00:08]} Na6 {[%emt 0:00:03] Against Nc7} 23. Qe1 {[%emt 0:00:19]} (23. Re3 {is more complex.} Qxd5 24. Qe2 Qg5+ 25. Qg4) 23... Bxd5 {[%emt 0:00:21]} (23... Qxd5 24. Nc3 Bxc3 25. Qxc3 $16) 24. Qxe5 {[%emt 0:00:04]} Bxe5 {[%emt 0:00:03]} 25. Bd2 {[%emt 0:00:06]} Rc8 {[%emt 0:00:10]} (25... Bc6 $11 {keeps the balance.}) 26. Nc3 $2 {[%emt 0:00:08]} (26. Rd3 $16 Be4 27. Nxd6 Bxd3 28. Nxc8 Bxh2+ 29. Kg2 Bxf1+ 30. Kxf1) 26... Nxb4 $15 {[%emt 0:00:07]} 27. Nxd5 {[%emt 0:00:01]} Nxd5 {[%emt 0:00:01]} 28. Rb3 {[%emt 0:00:01]} Rc2 {[%emt 0:00:06]} (28... Rc7 $1 $15 {keeps the upper hand.}) 29. Bh6 $16 {[%emt 0:00:02]} Bf4 $2 {[%emt 0:00:26] [#]} (29... Bg7 $16 {keeps fighting.} 30. a6 (30. Bxg7 Kxg7 31. Rxb7 Ra2 $11) 30... b6) 30. Bxf4 $2 {[%emt 0:00:05]} ({White must play} 30. a6 $1 $18 {[%cal Ra6b7]} b6 31. Bxf4 Nxf4 32. Ra3 (32. Rxb6 Ra2 $18)) 30... Nxf4 $11 {[%emt 0:00:01]} 31. Rxb7 $18 {[%emt 0:00:01][%mdl 4096] Endgame Threatens to win with a6. KRB-KRN} Rc1 {[%emt 0:00:00]} (31... Ra2 $11) 32. a6 {[%emt 0:00:03]} Nxh3+ {[%emt 0:00:06]} 33. Kg2 {[%emt 0:00:01]} Nf4+ {[%emt 0:00:01]} 34. Kf3 {[%emt 0:00:04] Hoping for a7.} Rxf1 $11 {[%emt 0:00:03] KRN-KR} 35. a7 {[%emt 0:00:01][%mdl 64]} (35. Kxf4 Ra1) 35... Ra1 $1 {[%emt 0:00:01]} 36. Rb8+ {[%emt 0:00:02]} ({Much less strong is} 36. Kxf4 Ra4+ 37. Ke3 Kg7 $16) 36... Kg7 {[%emt 0:00:01][%cal Oa1a7] aiming for ...Rxa7!} 37. a8=Q {[%emt 0:00:00]} (37. a8=B $2 {too greedy.} Ne6 38. Kg3 Rg1+ 39. Kf3 Ra1 $19) 37... Rxa8 {[%emt 0:00:02]} 38. Rxa8 {[%emt 0:00:01] KR-KN} g5 {[%emt 0:00:04]} 39. Rd8 {[%emt 0:00:03][%mdl 1024] White has compensation.} d5 {[%emt 0:00:01]} 40. Kg4 {[%emt 0:00:02][%cal Oh2h4]} h6 {[%emt 0:00:03]} (40... Kf6 $11) 41. Rd6 $14 {[%emt 0:00:02]} Nd3 {[%emt 0:00:05]} 42. Kg3 {[%emt 0:00:03]} (42. f3 $14) 42... Nf4 $11 {[%emt 0:00:01] The position is equal.} 43. h4 {[%emt 0:00:03]} f6 {[%emt 0:00:02]} 44. Kg4 {[%emt 0:00:02] Black must now prevent Kf5.} Kg6 {[%emt 0:00:00]} 45. hxg5 $1 {[%emt 0:00:04]} hxg5 {[%emt 0:00:01]} 46. Kf3 {[%emt 0:00:02]} Kf5 {[%emt 0:00:01]} 47. Rd8 {[%emt 0:00:00]} Ke5 {[%emt 0:00:02]} 48. Re8+ {[%emt 0:00:02]} Kf5 {[%emt 0:00:01]} 49. Kg3 {[%emt 0:00:01]} Nh5+ {[%emt 0:00:01]} 50. Kf3 {[%emt 0:00:00]} Nf4 {[%emt 0:00:02]} 51. Ke3 {[%emt 0:00:24] Weighted Error Value: White=0.25 (precise) /Black=0.28 (precise)} 1/2-1/2

[Event "Romanian Team Blitz Open 2022"]
[Site "Sebes"]
[Date "2022.12.04"]
[Round "3.7"]
[White "Nastore, Pavel-Alexandru"]
[Black "Stoleriu, George"]
[Result "1-0"]
[ECO "A43"]
[WhiteElo "2218"]
[BlackElo "2389"]
[Annotator "TA"]
[PlyCount "67"]
[EventDate "2022.12.04"]
[EventType "blitz"]
[EventCountry "ROU"]
[SourceTitle "playchess.com"]
[Source "ChessBase"]
[SourceQuality "1"]
[TimeControl "180+2"]

{[%evp 12,67,28,8,5,17,24,19,54,64,53,63,93,46,46,45,39,26,39,29,32,29,51,34,27,25,36,23,32,29,68,60,62,47,75,69,66,62,94,93,145,148,123,132,181,134,148,148,178,183,312,302,279,261,522,514,520,476]} 1. d4 {[%emt 0:00:02]} Nf6 {[%emt 0:00:00]} 2. Nf3 {[%emt 0:00:01]} g6 {[%emt 0:00:01]} 3. g3 {[%emt 0:00:01]} Bg7 4. Bg2 O-O {[%emt 0:00:02]} 5. O-O {[%emt 0:00:01]} d6 {[%emt 0:00:01]} 6. Re1 {[%emt 0:00:00]} c5 {[%emt 0:00:16]} 7. d5 {[%emt 0:00:11]} b5 {[%emt 0:00:09] A43: Schmid Benoni.} 8. e4 {[%emt 0:00:08]} Nfd7 {[%emt 0:00:02] Against e5} 9. a4 {[%emt 0:00:34] [#]} bxa4 $146 {[%emt 0:00:04] The position is equal.} ({Predecessor:} 9... b4 10. Nbd2 a5 11. Nc4 Ba6 12. Ne3 Nb6 13. Ra2 N6d7 14. h4 Nf6 15. Nh2 c4 {0-1 (47) Ruemmler,R (2023)-Hager,J (2217) Dresden 2009}) 10. Rxa4 {[%emt 0:00:17]} Nb6 {[%emt 0:00:01]} 11. Ra2 {[%emt 0:00:10][%cal Ba4a2,Ba2b2,Bb2b3][%mdl 32]} N8d7 {[%emt 0:00:06]} 12. b3 {[%emt 0:00:05] White is more active.} ({White should play} 12. Bd2 $16) 12... a5 $14 {[%emt 0:00:03]} 13. Bb2 {[%emt 0:00:17]} Bxb2 {[%emt 0:00:09]} 14. Rxb2 {[%emt 0:00:01]} f6 {[%emt 0:00:00]} 15. Nbd2 {[%emt 0:00:10]} a4 {[%emt 0:00:04]} 16. bxa4 {[%emt 0:00:06]} Nxa4 {[%emt 0:00:01]} 17. Rb3 {[%emt 0:00:06]} Ne5 {[%emt 0:00:06]} 18. Nxe5 {[%emt 0:00:03]} fxe5 {[%emt 0:00:01]} 19. Bf3 {[%emt 0:00:17]} Bd7 {[%emt 0:00:17]} 20. Bg4 {[%emt 0:00:01]} Qc8 {[%emt 0:00:00]} 21. Bxd7 Qxd7 {[%emt 0:00:01]} 22. Qe2 {[%emt 0:00:15]} Rfb8 {[%emt 0:00:43]} 23. Reb1 {[%emt 0:00:02]} Qc8 {[%emt 0:00:01]} 24. Qc4 {[%emt 0:00:12] [#] Hoping for Rxb8.} Rxb3 {[%emt 0:00:13]} 25. Rxb3 {[%emt 0:00:17]} Qa6 {[%emt 0:00:06]} ({Black should try} 25... Qd8) 26. Qxa6 $16 {[%emt 0:00:02]} Rxa6 {[%emt 0:00:01][%mdl 4096] Endgame [#] KRN-KRN} 27. Nc4 {[%emt 0:00:00] Inhibits Nb6.} Kf7 {[%emt 0:00:23]} (27... Ra8 $16 28. h4 h6) 28. Kf1 {[%emt 0:00:03]} ({Better is} 28. f4 $18) 28... Ra8 {[%emt 0:00:05]} 29. Ke2 {[%emt 0:00:02]} Ke8 {[%emt 0:00:36]} 30. Kd2 {[%emt 0:00:02]} Ra7 {[%emt 0:00:11]} (30... g5 {was called for.} 31. Rb7 Ra6) 31. f4 $18 {[%emt 0:00:17]} exf4 {[%emt 0:00:03]} 32. gxf4 {[%emt 0:00:01]} Kd7 $2 {[%emt 0:00:10]} (32... Ra8 33. Kd3 Kf8) 33. Ra3 {[%emt 0:00:03]} Kc7 {[%emt 0:00:07]} 34. Nb2 {[%emt 0:00:02] Weighted Error Value: White=0.06 (flawless) /Black=0.30} 1-0

[Event "Romanian Team Blitz Open 2022"]
[Site "Sebes"]
[Date "2022.12.04"]
[Round "3.8"]
[White "Zubcu, Vlad-George"]
[Black "Ciorgovean, Iustin"]
[Result "1-0"]
[ECO "D01"]
[WhiteElo "2135"]
[BlackElo "2319"]
[Annotator "TA"]
[PlyCount "117"]
[EventDate "2022.12.04"]
[EventType "blitz"]
[EventCountry "ROU"]
[SourceTitle "playchess.com"]
[Source "ChessBase"]
[SourceQuality "1"]
[TimeControl "180+2"]

{[%evp 9,116,-17,0,-19,-25,-20,-22,-10,-18,-23,-27,-33,-30,-24,-19,-25,-7,-23,-16,-18,0,-6,0,-28,29,19,113,-10,-16,-10,0,-22,-21,-21,0,-6,0,0,22,16,42,60,61,27,64,62,90,77,68,14,18,21,23,23,69,50,134,95,84,80,129,129,1198,129,129,129,129,126,129,129,133,126,261,143,143,141,270,77,270,269,497,488,405,418,458,166,4133,5106,2480,2713,29977,29978,29978,29979,29981,29982,29982,29983,29985,29984,29984,29985,29987,29988,29995,29996,29998,29999,29999]} 1. d4 {[%emt 0:00:02]} d5 {[%emt 0:00:01]} 2. Nc3 {[%emt 0:00:01]} Nf6 {[%emt 0:00:01]} 3. Bg5 {[%emt 0:00:00]} Nbd7 {[%emt 0:00:02]} 4. Nf3 {[%emt 0:00:08]} h6 {[%emt 0:00:03]} 5. Bf4 {[%emt 0:00:08]} a6 {[%emt 0:00:03]} 6. g3 {[%emt 0:00:29] D01: Veresov Opening.} e6 {[%emt 0:00:05]} 7. Bg2 {[%emt 0:00:00] [#]} b5 $146 {[%emt 0:00:03]} ({Predecessor:} 7... c5 8. e3 Be7 9. Ne5 Nxe5 10. Bxe5 O-O 11. O-O Bd7 12. a3 Rc8 13. Qd2 Bc6 14. Bxf6 Bxf6 15. dxc5 {1-0 (49) Belova,O (2069)-Komiagina,M (2234) St Petersburg 2018}) 8. O-O {[%emt 0:00:04][%cal Oe2e4] The position is equal.} Bb7 {[%emt 0:00:01]} 9. a4 {[%emt 0:00:10]} b4 {[%emt 0:00:05]} 10. Na2 {[%emt 0:00:01]} c5 {[%emt 0:00:14]} 11. c3 {[%emt 0:00:22]} bxc3 {[%emt 0:00:07]} 12. bxc3 {[%emt 0:00:08]} Be7 {[%emt 0:00:12]} 13. Rb1 {[%emt 0:00:04]} Bc6 {[%emt 0:00:09]} 14. Ne5 {[%emt 0:00:10]} Nxe5 {[%emt 0:00:05]} 15. Bxe5 {[%emt 0:00:01]} O-O {[%emt 0:00:13]} 16. c4 {[%emt 0:00:02]} Qd7 {[%emt 0:00:04]} ({Black should try} 16... Rc8) 17. cxd5 {[%emt 0:00:11]} Bxd5 {[%emt 0:00:21]} (17... Nxd5 $11 18. dxc5 Bxc5) 18. Bxd5 {[%emt 0:00:03]} (18. Bxf6 $1 $16 Bxf6 19. dxc5) 18... Qxd5 $11 {[%emt 0:00:07]} 19. Nc3 {[%emt 0:00:05]} Qc6 {[%emt 0:00:11]} (19... Qc4 {simplifies} 20. Qb3 Qxb3 21. Rxb3 cxd4 22. Bxd4 Rfc8) 20. e3 {[%emt 0:00:40]} Rfd8 {[%emt 0:00:21] ...cxd4 is the strong threat.} (20... cxd4 {simplifies} 21. Bxd4 Nd7 22. Na2 Rfd8) 21. Qb3 $1 {[%emt 0:00:20]} Ng4 {[%emt 0:00:43]} 22. Qb7 {[%emt 0:00:18]} Qxb7 {[%emt 0:00:09]} (22... Qe8 {looks sharper.} 23. Qe4 Nf6 24. Qb7 cxd4 25. Bxd4 Rdb8) 23. Rxb7 {[%emt 0:00:01]} Nxe5 {[%emt 0:00:06]} 24. dxe5 {[%emt 0:00:06]} Kf8 {[%emt 0:00:01]} 25. Rfb1 {[%emt 0:00:03]} c4 {[%emt 0:00:07]} 26. Kf1 {[%emt 0:00:02] White is more active.} Rd3 {[%emt 0:00:06]} 27. Ne4 {[%emt 0:00:03]} Rd5 {[%emt 0:00:01]} 28. f4 {[%emt 0:00:03]} Rc8 {[%emt 0:00:06] Prevents Rc7.} 29. Rb8 {[%emt 0:00:01] Prevents f5.} (29. Ke2 $1 $14) 29... Rdd8 {[%emt 0:00:03]} 30. Rxc8 Rxc8 {[%emt 0:00:01][%mdl 4096] Endgame KRB-KRN} 31. Ke2 {[%emt 0:00:06]} c3 {[%emt 0:00:02]} (31... g5 $11) 32. Rc1 {[%emt 0:00:02]} (32. Nxc3 $5 Ke8 33. Kd3 $14) 32... Rc4 {[%emt 0:00:07]} ({Better is} 32... Bb4 $14) 33. Nxc3 {[%emt 0:00:06]} Ba3 {[%emt 0:00:01]} 34. Rc2 {[%emt 0:00:01]} Ke7 {[%emt 0:00:04]} (34... Rc8 $142) 35. Kd3 $16 {[%emt 0:00:00]} Rc7 {[%emt 0:00:02][%mdl 8192] [#]} (35... Rc5 $16 36. Ne2 Rxc2 37. Kxc2 Bb4) 36. Ne4 $2 {[%emt 0:00:02]} (36. Nd5+ $1 $18 {[%mdl 512] is the precise move to win.} exd5 37. Rxc7+ Ke8 38. Ra7) 36... Rxc2 {[%emt 0:00:02]} 37. Kxc2 {[%emt 0:00:01] KB-KN} Kd7 {[%emt 0:00:01]} 38. Nd2 {[%emt 0:00:05]} Bc5 {[%emt 0:00:01]} 39. Kd3 {[%emt 0:00:02]} Kc6 {[%emt 0:00:01]} 40. h3 {[%emt 0:00:05]} h5 {[%emt 0:00:01]} (40... Bb4 $16 {might work better.}) 41. g4 {[%emt 0:00:00]} (41. Ne4 $18) 41... hxg4 {[%emt 0:00:02]} 42. hxg4 {[%emt 0:00:01]} g6 {[%emt 0:00:01]} (42... Kd5 $16 {was necessary.} 43. Nf3 Be7 44. e4+ Kc6) 43. e4 $2 {[%emt 0:00:01]} (43. Nf3 $18 {has better winning chances.}) 43... Be7 {[%emt 0:00:02]} (43... Bf8 $16 {was called for.}) 44. Kc4 $1 $18 {[%emt 0:00:01]} Bh4 $2 {[%emt 0:00:03]} (44... Bc5 45. Nf3 Be3) 45. Nf3 {[%emt 0:00:02]} Bg3 {[%emt 0:00:02] [#]} 46. f5 {[%emt 0:00:00]} Bf4 {[%emt 0:00:02]} 47. Kd4 {[%emt 0:00:03] Inhibits Be3+.} (47. fxg6 {g7 would kill now.} fxg6 48. Nd4+ Kd7 49. Nb3) 47... Bg3 $2 {[%emt 0:00:03] [#]} (47... Bc1 48. Kc4 Be3) 48. Ng5 $1 {[%emt 0:00:01][%csl LRe6,LRf7]} Bf2+ {[%emt 0:00:02]} 49. Kc4 {[%emt 0:00:01]} exf5 {[%emt 0:00:01]} 50. exf5 {[%emt 0:00:01] White mates.} gxf5 51. gxf5 {[%emt 0:00:00]} f6 {[%emt 0:00:05]} 52. exf6 {[%emt 0:00:03][%cal Be5f6,Bf6f7][%mdl 32]} Kd7 {[%emt 0:00:01]} 53. Kd5 {[%emt 0:00:01]} Bh4 {[%emt 0:00:02]} 54. Ne4 {[%emt 0:00:01]} Be1 {[%emt 0:00:06]} 55. Nc5+ {[%emt 0:00:02]} Ke8 {[%emt 0:00:01]} 56. Ke6 {[%emt 0:00:01]} a5 {[%emt 0:00:02]} 57. f7+ {[%emt 0:00:00]} Kf8 {[%emt 0:00:01]} 58. f6 {[%emt 0:00:01][%cal Rc5d7]} Bb4 {[%emt 0:00:05]} 59. Nd7# {[%emt 0:00:01] Weighted Error Value: White=0.35/Black=0.37} 1-0